fUST/lending_fUST_20251129
["ID","MTS","AMOUNT","RATE_DAILY","PERIOD"]
[395069986,1764397881267,-574.22,0.00017534,2]
[395069987,1764397881277,-581.68,0.00017534,2]
[395069988,1764397881286,-500.0,0.00017534,2]
[395069989,1764397881295,-215.87055735,0.00017534,2]
[395069990,1764397881303,-556.95,0.00017534,2]
[395069991,1764397881315,-564.08,0.00017534,2]
[395069992,1764397881324,-540.78,0.00017534,2]
[395069993,1764397881333,-500.0,0.00017534,2]
[395069994,1764397881342,-689.25,0.00017534,2]
[395069995,1764397881350,-848.59,0.00017534,2]
[395069996,1764397881359,-1164.8,0.00017534,2]
[395069997,1764397881368,-1236.56,0.00017534,2]
[395069998,1764397881377,-500.0,0.00017534,2]
[395069999,1764397881386,-3090.35,0.00017534,2]
[395070000,1764397881395,-529.77,0.00017534,2]
[395070001,1764397881405,-5933.31,0.00017534,2]
[395070002,1764397881414,-1214.71,0.00017534,2]
[395070003,1764397881424,-500.0,0.00017534,2]
[395070004,1764397881433,-652.25,0.00017534,2]
[395070005,1764397881441,-1897.31,0.00017534,2]
[395070006,1764397881451,-990.53,0.00017534,2]
[395070007,1764397881460,-500.0,0.00017534,2]
[395070008,1764397881469,-778.35,0.00017534,2]
[395070009,1764397881478,-1618.79,0.00017534,2]
[395070010,1764397881488,-592.68,0.00017534,2]
[395070011,1764397881497,-899.31,0.00017534,2]
[395070012,1764397881506,-940.19,0.00017534,2]
[395070013,1764397881516,-500.0,0.00017534,2]
[395070014,1764397881525,-500.0,0.00017534,2]
[395070015,1764397881534,-1484.2,0.00017534,2]
[395070016,1764397881543,-500.0,0.00017534,2]
[395070017,1764397881553,-596.04,0.00017534,2]
[395070018,1764397881562,-2800.32,0.00017534,2]
[395070019,1764397881571,-500.0,0.00017534,2]
[395070020,1764397881580,-500.0,0.00017534,2]
[395070021,1764397881589,-500.0,0.00017534,2]
[395070022,1764397881598,-552.21,0.00017534,2]
[395070023,1764397881607,-500.0,0.00017534,2]
[395070024,1764397881617,-1559.52,0.00017534,2]
[395070025,1764397881626,-522.61,0.00017534,2]
[395070026,1764397881635,-797.75,0.00017534,2]
[395070027,1764397881644,-513.48,0.00017534,2]
[395070028,1764397881654,-526.07,0.00017534,2]
[395070029,1764397881664,-500.0,0.00017534,2]
[395070030,1764397881674,-500.0,0.00017534,2]
[395070031,1764397881683,-1335.25,0.00017534,2]
[395070032,1764397881693,-1099.74,0.00017534,2]
[395070033,1764397881703,-3619.92,0.00017534,2]
[395070034,1764397881712,-500.0,0.00017534,2]
[395070035,1764397881722,-2405.03,0.00017534,2]
[395070036,1764397881731,-500.0,0.00017534,2]
[395070037,1764397881740,-7651.96,0.00017534,2]
[395070038,1764397881750,-649.66,0.00017534,2]
[395070039,1764397881760,-1908.06,0.00017534,2]
[395070040,1764397881769,-500.0,0.00017534,2]
[395070041,1764397881778,-662.97,0.00017534,2]
[395070042,1764397881788,-1158.74,0.00017534,2]
[395070043,1764397881797,-1514.35,0.00017534,2]
[395070044,1764397881806,-642.19,0.00017534,2]
[395070045,1764397881815,-500.0,0.00017534,2]
[395070046,1764397881824,-3678.73,0.00017534,2]
[395070047,1764397881833,-6008.98,0.00017534,2]
[395070048,1764397881842,-514.33,0.00017534,2]
[395070049,1764397881851,-776.58,0.00017534,2]
[395070050,1764397881860,-500.0,0.00017534,2]
[395070051,1764397881869,-3777.58,0.00017534,2]
[395070052,1764397881879,-980.94,0.00017534,2]
[395070053,1764397881887,-500.0,0.00017534,2]
[395070054,1764397881896,-907.07,0.00017534,2]
[395070055,1764397881906,-500.0,0.00017534,2]
[395070056,1764397881915,-1083.76,0.00017534,2]
[395070057,1764397881924,-604.62,0.00017534,2]
[395070058,1764397881933,-500.0,0.00017534,2]
[395070059,1764397881941,-1104.96,0.00017534,2]
[395070060,1764397881950,-500.0,0.00017534,2]
[395070061,1764397881959,-6559.69,0.00017534,2]
[395070062,1764397881968,-939.05,0.00017534,2]
[395070063,1764397881978,-1377.4,0.00017534,2]
[395070064,1764397881986,-4642.22,0.00017534,2]
[395070065,1764397881995,-4000.0,0.00017534,2]
[395070066,1764397882005,-4000.0,0.00017534,2]
[395070067,1764397882015,-158.910917,0.000176,2]
[395070068,1764397882023,-18119.31501994,0.00017614,2]
[395070069,1764397882033,-155.245964,0.00017631,3]
[395070070,1764397882044,-4500.0,0.00017656,2]
[395070071,1764397882054,-460.85741122,0.00017656,2]
[395070072,1764397882063,-155.245964,0.00017664,4]
[395070073,1764397882072,-270.0455652,0.00017672,2]
[395070074,1764397882082,-666.0,0.00017672,2]
[395070075,1764397882091,-500.0,0.0001768,2]
[395070076,1764397882100,-600.0,0.000177,2]
[395070077,1764397882109,-177.56476227,0.000178,3]
[395070078,1764397882120,-302.38057739,0.00017808,2]
[395070079,1764397882130,-266.0860443,0.00017808,2]
[395070080,1764397882140,-766.13,0.00017808,2]
[395070081,1764397882149,-556.64,0.00017808,2]
[395070082,1764397882158,-834.94,0.00017808,2]
[395070083,1764397882168,-500.0,0.00017808,2]
[395070084,1764397882177,-823.76,0.00017808,2]
[395070085,1764397882186,-598.61,0.00017808,2]
[395070086,1764397882196,-903.4,0.00017808,2]
[395070087,1764397882205,-500.0,0.00017808,2]
[395070088,1764397882214,-631.48703276,0.00017808,2]
[395070089,1764397882223,-745.8,0.00017808,2]
[395070090,1764397882237,-500.0,0.00017808,2]
[395070091,1764397882246,-500.0,0.00017808,2]
[395070092,1764397882255,-500.0,0.00017808,2]
[395070093,1764397882264,-500.0,0.00017808,2]
[395070094,1764397882274,-587.4,0.00017808,2]
[395070095,1764397882283,-738.75,0.00017808,2]
[395070096,1764397882292,-500.0,0.00017808,2]
[395070097,1764397882301,-596.16,0.00017808,2]
[395070098,1764397882311,-574.22,0.00017808,2]
[395070099,1764397882322,-581.68,0.00017808,2]
[395070100,1764397882333,-500.0,0.00017808,2]
[395070101,1764397882343,-556.95,0.00017808,2]
[395070102,1764397882352,-564.08,0.00017808,2]
[395070103,1764397882362,-540.78,0.00017808,2]
[395070104,1764397882371,-500.0,0.00017808,2]
[395070105,1764397882381,-689.25,0.00017808,2]
[395070106,1764397882390,-848.59,0.00017808,2]
[395070107,1764397882399,-1164.8,0.00017808,2]
[395070108,1764397882408,-1236.56,0.00017808,2]
[395070109,1764397882418,-500.0,0.00017808,2]
[395070110,1764397882427,-3090.35,0.00017808,2]
[395070111,1764397882437,-529.77,0.00017808,2]
[395070112,1764397882446,-5933.31,0.00017808,2]
[395070113,1764397882455,-1214.71,0.00017808,2]
[395070114,1764397882464,-500.0,0.00017808,2]
[395070115,1764397882474,-652.25,0.00017808,2]
[395070116,1764397882483,-1897.31,0.00017808,2]
[395070117,1764397882492,-990.53,0.00017808,2]
[395070118,1764397882502,-500.0,0.00017808,2]
[395070119,1764397882512,-778.35,0.00017808,2]
[395070120,1764397882521,-1618.79,0.00017808,2]
[395070121,1764397882531,-592.68,0.00017808,2]
[395070122,1764397882541,-899.31,0.00017808,2]
[395070123,1764397882551,-940.19,0.00017808,2]
[395070124,1764397882560,-500.0,0.00017808,2]
[395070125,1764397882570,-500.0,0.00017808,2]
[395070126,1764397882580,-1484.2,0.00017808,2]
[395070127,1764397882589,-500.0,0.00017808,2]
[395070128,1764397882599,-596.04,0.00017808,2]
[395070129,1764397882608,-2800.32,0.00017808,2]
[395070130,1764397882618,-500.0,0.00017808,2]
[395070131,1764397882627,-500.0,0.00017808,2]
[395070132,1764397882637,-500.0,0.00017808,2]
[395070133,1764397882646,-552.21,0.00017808,2]
[395070134,1764397882656,-604.53322993,0.00017808,2]
[395070135,1764397882665,-1559.52,0.00017808,2]
[395070136,1764397882674,-522.61,0.00017808,2]
[395070137,1764397882684,-797.75,0.00017808,2]
[395070138,1764397882693,-513.48,0.00017808,2]
[395070139,1764397882703,-526.07,0.00017808,2]
[395070140,1764397882713,-500.0,0.00017808,2]
[395070141,1764397882723,-193.89572055,0.00017808,2]
[395070142,1764397882732,-1335.25,0.00017808,2]
[395070143,1764397882742,-1099.74,0.00017808,2]
[395070144,1764397882751,-3619.92,0.00017808,2]
[395070145,1764397882761,-500.0,0.00017808,2]
[395070146,1764397882770,-2405.03,0.00017808,2]
[395070147,1764397882779,-235.80837454,0.00017808,2]
[395070148,1764397882788,-7651.96,0.00017808,2]
[395070149,1764397882798,-649.66,0.00017808,2]
[395070150,1764397882807,-1908.06,0.00017808,2]
[395070151,1764397882817,-500.0,0.00017808,2]
[395070152,1764397882827,-662.97,0.00017808,2]
[395070153,1764397882836,-1158.74,0.00017808,2]
[395070154,1764397882846,-1514.35,0.00017808,2]
[395070155,1764397882856,-642.19,0.00017808,2]
[395070156,1764397882865,-500.0,0.00017808,2]
[395070157,1764397882874,-3678.73,0.00017808,2]
[395070158,1764397882883,-6008.98,0.00017808,2]
[395070159,1764397882893,-514.33,0.00017808,2]
[395070160,1764397882902,-776.58,0.00017808,2]
[395070161,1764397882911,-500.0,0.00017808,2]
[395070162,1764397882920,-3777.58,0.00017808,2]
[395070163,1764397882930,-980.94,0.00017808,2]
[395070164,1764397882939,-529.05946701,0.00017808,2]
[395070165,1764397882948,-907.07,0.00017808,2]
[395070166,1764397882958,-500.0,0.00017808,2]
[395070167,1764397882967,-1083.76,0.00017808,2]
[395070168,1764397882976,-604.62,0.00017808,2]
[395070169,1764397882985,-500.0,0.00017808,2]
[395070170,1764397882995,-1104.96,0.00017808,2]
[395070171,1764397883005,-500.0,0.00017808,2]
[395070172,1764397883014,-6559.69,0.00017808,2]
[395070173,1764397883023,-939.05,0.00017808,2]
[395070174,1764397883032,-1377.4,0.00017808,2]
[395070175,1764397883042,-4642.22,0.00017808,2]
[395070176,1764397883051,-760.0,0.0001784,2]
[395070177,1764397883060,-368.72313193,0.00017865,17]
[395070178,1764397883070,-153.0,0.00017915,2]
[395070179,1764397883079,-153.0,0.00017915,2]
[395070180,1764397883090,-153.8885545,0.00017915,2]
[395070181,1764397883099,-862.9078781,0.00017923,2]
[395070182,1764397883108,-946.0,0.00018,2]
[395070183,1764397883119,-160978.8165114,0.00018,2]
[395070184,1764397883128,-29872.12094916,0.00018,2]
[395070185,1764397883138,-2700.0,0.00018056,2]
[395070186,1764397883147,-766.13,0.00018082,2]
[395070187,1764397883157,-556.64,0.00018082,2]
[395070188,1764397883166,-834.94,0.00018082,2]
[395070189,1764397883176,-500.0,0.00018082,2]
[395070190,1764397883186,-823.76,0.00018082,2]
[395070191,1764397883195,-598.61,0.00018082,2]
[395070192,1764397883205,-903.4,0.00018082,2]
[395070193,1764397883215,-500.0,0.00018082,2]
[395070194,1764397883224,-745.8,0.00018082,2]
[395070195,1764397883236,-298.60077181,0.00018082,2]
[395070196,1764397883246,-500.0,0.00018082,2]
[395070197,1764397883256,-500.0,0.00018082,2]
[395070198,1764397883265,-500.0,0.00018082,2]
[395070199,1764397883275,-500.0,0.00018082,2]
[395070200,1764397883284,-587.4,0.00018082,2]
[395070201,1764397883294,-738.75,0.00018082,2]
[395070202,1764397883303,-500.0,0.00018082,2]
[395070203,1764397883314,-596.16,0.00018082,2]
[395070204,1764397883324,-574.22,0.00018082,2]
[395070205,1764397883334,-581.68,0.00018082,2]
[395070206,1764397883344,-500.0,0.00018082,2]
[395070207,1764397883353,-556.95,0.00018082,2]
[395070208,1764397883362,-564.08,0.00018082,2]
[395070209,1764397883372,-500.0,0.00018082,2]
[395070210,1764397883381,-540.78,0.00018082,2]
[395070211,1764397883391,-689.25,0.00018082,2]
[395070212,1764397883401,-848.59,0.00018082,2]
[395070213,1764397883410,-1164.8,0.00018082,2]
[395070214,1764397883421,-1236.56,0.00018082,2]
[395070215,1764397883430,-500.0,0.00018082,2]
[395070216,1764397883439,-3090.35,0.00018082,2]
[395070217,1764397883449,-529.77,0.00018082,2]
[395070218,1764397883459,-5933.31,0.00018082,2]
[395070219,1764397883468,-1214.71,0.00018082,2]
[395070220,1764397883477,-500.0,0.00018082,2]
[395070221,1764397883487,-652.25,0.00018082,2]
[395070222,1764397883497,-1897.31,0.00018082,2]
[395070223,1764397883507,-990.53,0.00018082,2]
[395070224,1764397883517,-245.51407054,0.00018082,2]
[395070225,1764397883527,-778.35,0.00018082,2]
[395070226,1764397883536,-1618.79,0.00018082,2]
[395070227,1764397883547,-592.68,0.00018082,2]
[395070228,1764397883557,-899.31,0.00018082,2]
[395070229,1764397883567,-940.19,0.00018082,2]
[395070230,1764397883577,-500.0,0.00018082,2]
[395070231,1764397883587,-385.47456887,0.00018082,2]
[395070232,1764397883598,-1484.2,0.00018082,2]
[395070233,1764397883608,-500.0,0.00018082,2]
[395070234,1764397883618,-596.04,0.00018082,2]
[395070235,1764397883628,-2800.32,0.00018082,2]
[395070236,1764397883638,-500.0,0.00018082,2]
[395070237,1764397883648,-500.0,0.00018082,2]
[395070238,1764397883658,-500.0,0.00018082,2]
[395070239,1764397883668,-552.21,0.00018082,2]
[395070240,1764397883678,-1559.52,0.00018082,2]
[395070241,1764397883688,-522.61,0.00018082,2]
[395070242,1764397883698,-797.75,0.00018082,2]
[395070243,1764397883708,-513.48,0.00018082,2]
[395070244,1764397883718,-526.07,0.00018082,2]
[395070245,1764397883728,-182.51329351,0.00018082,2]
[395070246,1764397883738,-1335.25,0.00018082,2]
[395070247,1764397883748,-1099.74,0.00018082,2]
[395070248,1764397883758,-3619.92,0.00018082,2]
[395070249,1764397883768,-500.0,0.00018082,2]
[395070250,1764397883778,-2405.03,0.00018082,2]
[395070251,1764397883788,-7651.96,0.00018082,2]
[395070252,1764397883798,-649.66,0.00018082,2]
[395070253,1764397883808,-1908.06,0.00018082,2]
[395070254,1764397883817,-500.0,0.00018082,2]
[395070255,1764397883827,-662.97,0.00018082,2]
[395070256,1764397883837,-1158.74,0.00018082,2]
[395070257,1764397883847,-1514.35,0.00018082,2]
[395070258,1764397883856,-642.19,0.00018082,2]
[395070259,1764397883866,-500.0,0.00018082,2]
[395070260,1764397883875,-3678.73,0.00018082,2]
[395070261,1764397883885,-6008.98,0.00018082,2]
[395070262,1764397883895,-514.33,0.00018082,2]
[395070263,1764397883905,-776.58,0.00018082,2]
[395070264,1764397883921,-500.0,0.00018082,2]
[395070265,1764397883930,-3777.58,0.00018082,2]
[395070266,1764397883942,-980.94,0.00018082,2]
[395070267,1764397883959,-907.07,0.00018082,2]
[395070268,1764397883969,-163.3195603,0.00018082,2]
[395070269,1764397883979,-1083.76,0.00018082,2]
[395070270,1764397883988,-604.62,0.00018082,2]
[395070271,1764397883998,-1104.96,0.00018082,2]
[395070272,1764397884008,-589.20240478,0.00018082,2]
[395070273,1764397884018,-6559.69,0.00018082,2]
[395070274,1764397884028,-939.05,0.00018082,2]
[395070275,1764397884038,-1377.4,0.00018082,2]
[395070276,1764397884048,-4642.22,0.00018082,2]
[395070277,1764397884058,-4500.0,0.00018082,2]
[395070278,1764397884068,-4500.0,0.00018082,2]
[395070279,1764397884078,-150.0,0.00018101,2]
[395070280,1764397884089,-500.0,0.00018155,2]
[395070281,1764397884100,-5000.0,0.00018204,2]
[395070282,1764397884110,-280.03725112,0.0001822,2]
[395070283,1764397884121,-666.0,0.0001822,2]
[395070284,1764397884287,-368.72313193,0.00018274,18]
[395070285,1764397884296,-766.13,0.00018356,2]
[395070286,1764397884305,-556.64,0.00018356,2]
[395070287,1764397884316,-834.94,0.00018356,2]
[395070288,1764397884326,-500.0,0.00018356,2]
[395070289,1764397884335,-823.76,0.00018356,2]
[395070290,1764397884344,-598.61,0.00018356,2]
[395070291,1764397884353,-903.4,0.00018356,2]
[395070292,1764397884363,-500.0,0.00018356,2]
[395070293,1764397884372,-745.8,0.00018356,2]
[395070294,1764397884381,-342.51466411,0.00018356,2]
[395070295,1764397884390,-500.0,0.00018356,2]
[395070296,1764397884400,-500.0,0.00018356,2]
[395070297,1764397884410,-446.83183017,0.00018356,2]
[395070298,1764397884420,-587.4,0.00018356,2]
[395070299,1764397884430,-738.75,0.00018356,2]
[395070300,1764397884441,-203.56173679,0.00018356,2]
[395070301,1764397884452,-596.16,0.00018356,2]
[395070302,1764397884461,-574.22,0.00018356,2]
[395070303,1764397884471,-581.68,0.00018356,2]
[395070304,1764397884481,-384.10231104,0.00018356,2]
[395070305,1764397884491,-556.95,0.00018356,2]
[395070306,1764397884500,-564.08,0.00018356,2]
[395070307,1764397884510,-500.0,0.00018356,2]
[395070308,1764397884519,-540.78,0.00018356,2]
[395070309,1764397884528,-689.25,0.00018356,2]
[395070310,1764397884537,-151.0,0.00018356,2]
[395070311,1764397884546,-848.59,0.00018356,2]
[395070312,1764397884555,-1164.8,0.00018356,2]
[395070313,1764397884565,-1236.56,0.00018356,2]
[395070314,1764397884574,-254.92657186,0.00018356,2]
[395070315,1764397884583,-3090.35,0.00018356,2]
[395070316,1764397884592,-529.77,0.00018356,2]
[395070317,1764397884601,-5933.31,0.00018356,2]
[395070318,1764397884610,-1214.71,0.00018356,2]
[395070319,1764397884619,-284.21020129,0.00018356,2]
[395070320,1764397884628,-652.25,0.00018356,2]
[395070321,1764397884637,-1897.31,0.00018356,2]
[395070322,1764397884647,-990.53,0.00018356,2]
[395070323,1764397884656,-778.35,0.00018356,2]
[395070324,1764397884665,-1618.79,0.00018356,2]
[395070325,1764397884675,-592.68,0.00018356,2]
[395070326,1764397884686,-899.31,0.00018356,2]
[395070327,1764397884695,-940.19,0.00018356,2]
[395070328,1764397884704,-500.0,0.00018356,2]
[395070329,1764397884714,-1484.2,0.00018356,2]
[395070330,1764397884724,-555.88707089,0.00018356,2]
[395070331,1764397884733,-596.04,0.00018356,2]
[395070332,1764397884742,-2800.32,0.00018356,2]
[395070333,1764397884751,-500.0,0.00018356,2]
[395070334,1764397884760,-628.60731335,0.00018356,2]
[395070335,1764397884769,-500.0,0.00018356,2]
[395070336,1764397884778,-552.21,0.00018356,2]
[395070337,1764397884787,-1559.52,0.00018356,2]
[395070338,1764397884796,-522.61,0.00018356,2]
[395070339,1764397884805,-797.75,0.00018356,2]
[395070340,1764397884814,-513.48,0.00018356,2]
[395070341,1764397884824,-526.07,0.00018356,2]
[395070342,1764397884833,-1335.25,0.00018356,2]
[395070343,1764397884842,-1099.74,0.00018356,2]
[395070344,1764397884851,-3619.92,0.00018356,2]
[395070345,1764397884860,-174.93810515,0.00018356,2]
[395070346,1764397884869,-2405.03,0.00018356,2]
[395070347,1764397884878,-7651.96,0.00018356,2]
[395070348,1764397884887,-649.66,0.00018356,2]
[395070349,1764397884895,-1908.06,0.00018356,2]
[395070350,1764397884904,-500.0,0.00018356,2]
[395070351,1764397884913,-662.97,0.00018356,2]
[395070352,1764397884923,-1158.74,0.00018356,2]
[395070353,1764397884932,-1514.35,0.00018356,2]
[395070354,1764397884940,-642.19,0.00018356,2]
[395070355,1764397884950,-500.0,0.00018356,2]
[395070356,1764397884959,-3678.73,0.00018356,2]
[395070357,1764397884968,-6008.98,0.00018356,2]
[395070358,1764397884977,-514.33,0.00018356,2]
[395070359,1764397884986,-776.58,0.00018356,2]
[395070360,1764397884995,-500.0,0.00018356,2]
[395070361,1764397885003,-3777.58,0.00018356,2]
[395070362,1764397885012,-980.94,0.00018356,2]
[395070363,1764397885021,-907.07,0.00018356,2]
[395070364,1764397885030,-1083.76,0.00018356,2]
[395070365,1764397885039,-604.62,0.00018356,2]
[395070366,1764397885048,-1104.96,0.00018356,2]
[395070367,1764397885057,-6559.69,0.00018356,2]
[395070368,1764397885066,-939.05,0.00018356,2]
[395070369,1764397885075,-1377.4,0.00018356,2]
[395070370,1764397885084,-4642.22,0.00018356,2]
[395070371,1764397885094,-957.1531345,0.00018356,2]
[395070372,1764397885103,-231.0,0.00018365,2]
[395070373,1764397885112,-860.0,0.00018388,2]
[395070374,1764397885121,-155.245964,0.00018394,3]
[395070375,1764397885130,-235.322061,0.00018493,2]
[395070376,1764397885140,-3000.0,0.00018604,2]
[395070377,1764397885149,-766.13,0.0001863,2]
[395070378,1764397885158,-556.64,0.0001863,2]
[395070379,1764397885167,-834.94,0.0001863,2]
[395070380,1764397885176,-500.0,0.0001863,2]
[395070381,1764397885186,-823.76,0.0001863,2]
[395070382,1764397885195,-598.61,0.0001863,2]
[395070383,1764397885204,-903.4,0.0001863,2]
[395070384,1764397885214,-198.82703853,0.0001863,2]
[395070385,1764397885223,-745.8,0.0001863,2]
[395070386,1764397885237,-500.0,0.0001863,2]
[395070387,1764397885245,-500.0,0.0001863,2]
[395070388,1764397885254,-587.4,0.0001863,2]
[395070389,1764397885263,-738.75,0.0001863,2]
[395070390,1764397885272,-596.16,0.0001863,2]
[395070391,1764397885282,-574.22,0.0001863,2]
[395070392,1764397885291,-581.68,0.0001863,2]
[395070393,1764397885301,-556.95,0.0001863,2]
[395070394,1764397885311,-564.08,0.0001863,2]
[395070395,1764397885323,-500.0,0.0001863,2]
[395070396,1764397885332,-540.78,0.0001863,2]
[395070397,1764397885341,-689.25,0.0001863,2]
[395070398,1764397885351,-151.0,0.0001863,2]
[395070399,1764397885360,-848.59,0.0001863,2]
[395070400,1764397885369,-1164.8,0.0001863,2]
[395070401,1764397885378,-1236.56,0.0001863,2]
[395070403,1764397885387,-3090.35,0.0001863,2]
[395070404,1764397885397,-529.77,0.0001863,2]
[395070405,1764397885406,-5933.31,0.0001863,2]
[395070406,1764397885415,-1214.71,0.0001863,2]
[395070407,1764397885424,-652.25,0.0001863,2]
[395070408,1764397885433,-1897.31,0.0001863,2]
[395070409,1764397885443,-990.53,0.0001863,2]
[395070410,1764397885452,-778.35,0.0001863,2]
[395070411,1764397885461,-1618.79,0.0001863,2]
[395070412,1764397885471,-592.68,0.0001863,2]
[395070413,1764397885480,-899.31,0.0001863,2]
[395070414,1764397885489,-940.19,0.0001863,2]
[395070415,1764397885498,-500.0,0.0001863,2]
[395070416,1764397885507,-1484.2,0.0001863,2]
[395070417,1764397885516,-596.04,0.0001863,2]
[395070418,1764397885526,-2800.32,0.0001863,2]
[395070419,1764397885535,-500.0,0.0001863,2]
[395070420,1764397885544,-466.66948072,0.0001863,2]
[395070421,1764397885553,-552.21,0.0001863,2]
[395070422,1764397885562,-1559.52,0.0001863,2]
[395070423,1764397885571,-522.61,0.0001863,2]
[395070424,1764397885581,-797.75,0.0001863,2]
[395070425,1764397885591,-513.48,0.0001863,2]
[395070426,1764397885600,-526.07,0.0001863,2]
[395070427,1764397885609,-1335.25,0.0001863,2]
[395070428,1764397885618,-1099.74,0.0001863,2]
[395070429,1764397885627,-3619.92,0.0001863,2]
[395070430,1764397885637,-2405.03,0.0001863,2]
[395070431,1764397885646,-7651.96,0.0001863,2]
[395070432,1764397885656,-649.66,0.0001863,2]
[395070433,1764397885665,-1908.06,0.0001863,2]
[395070434,1764397885674,-521.25175487,0.0001863,2]
[395070435,1764397885684,-662.97,0.0001863,2]
[395070436,1764397885693,-1158.74,0.0001863,2]
[395070437,1764397885703,-1514.35,0.0001863,2]
[395070438,1764397885712,-642.19,0.0001863,2]
[395070439,1764397885721,-295.9503718,0.0001863,2]
[395070440,1764397885731,-3678.73,0.0001863,2]
[395070441,1764397885740,-6008.98,0.0001863,2]
[395070442,1764397885750,-514.33,0.0001863,2]
[395070443,1764397885759,-776.58,0.0001863,2]
[395070444,1764397885768,-500.0,0.0001863,2]
[395070445,1764397885777,-3777.58,0.0001863,2]
[395070446,1764397885786,-980.94,0.0001863,2]
[395070447,1764397885794,-907.07,0.0001863,2]
[395070448,1764397885803,-1083.76,0.0001863,2]
[395070449,1764397885812,-604.62,0.0001863,2]
[395070450,1764397885822,-1104.96,0.0001863,2]
[395070451,1764397885831,-6559.69,0.0001863,2]
[395070452,1764397885840,-939.05,0.0001863,2]
[395070453,1764397885849,-1377.4,0.0001863,2]
[395070454,1764397885858,-4642.22,0.0001863,2]
[395070455,1764397885867,-3174.902394,0.0001863,2]
[395070456,1764397885877,-5000.0,0.0001863,2]
[395070457,1764397885886,-600.0,0.00018638,2]
[395070458,1764397885895,-13583.41826348,0.0001866,2]
[395070459,1764397885905,-368.72313193,0.00018684,20]
[395070460,1764397885914,-600.0,0.00018698,2]
[395070461,1764397885923,-179.78425889,0.00018728,2]
[395070462,1764397885932,-5537.0952665,0.00018752,2]
[395070463,1764397885941,-290.39862941,0.00018768,2]
[395070464,1764397885950,-666.0,0.00018768,2]
[395070465,1764397885959,-1000.0,0.000188,6]
[395070466,1764397885968,-270603.08561538,0.000188,2]
[395070467,1764397885977,-500.0,0.00018836,2]
[395070468,1764397885986,-150.0,0.00018856,2]
[395070469,1764397885995,-302.66710251,0.000189,2]
[395070470,1764397886004,-766.13,0.00018904,2]
[395070471,1764397886013,-556.64,0.00018904,2]
[395070472,1764397886021,-834.94,0.00018904,2]
[395070473,1764397886030,-425.54,0.00018904,2]
[395070474,1764397886039,-823.76,0.00018904,2]
[395070475,1764397886048,-598.61,0.00018904,2]
[395070476,1764397886057,-903.4,0.00018904,2]
[395070477,1764397886066,-745.8,0.00018904,2]
[395070478,1764397886076,-500.0,0.00018904,2]
[395070479,1764397886085,-500.0,0.00018904,2]
[395070480,1764397886094,-587.4,0.00018904,2]
[395070481,1764397886103,-738.75,0.00018904,2]
[395070482,1764397886112,-596.16,0.00018904,2]
[395070483,1764397886121,-574.22,0.00018904,2]
[395070484,1764397886130,-581.68,0.00018904,2]
[395070485,1764397886139,-556.95,0.00018904,2]
[395070486,1764397886147,-564.08,0.00018904,2]